Cogmind - Beta 13 X2 @@@ ROGUE MODE // 2024.01.03 @ 17:15:19 Player: Minty Result: Destroyed by F3-0LN(R) with Subdweller Laser Performance ------------- Evolutions (0) 0 Regions Visited (3) 600 Robots Destroyed (13) 65 Value Destroyed (499) 499 Prototype IDs (2) 40 Alien Tech Used (0) 0 Bonus (0) 0 TOTAL SCORE: 1204 Bonus ------- None Cogmind --------- Core Integrity 0/250 Matter 263/300 Energy 200/200 System Corruption 0% Temperature Cool (6) Movement Rolling (95) Ox1 Location -10/Subcaves Parts ------- > --- POWER (1) -------- Subdweller Power Source > --- PROPULSION (2) --- Wheel Subdweller Monowheel > --- UTILITY (2) ------ Small Storage Unit Signal Interpreter > --- WEAPON (2) ------- Barrage Gun Enhanced Flamer > --- INVENTORY (8) ---- Makeshift Kinetic Plating Makeshift Thermal Plating Makeshift System Shield Light Cannon Peak State ------------ > --- POWER ------------ Subdweller Power Source > --- PROPULSION ------- Wheel Subdweller Monowheel > --- UTILITY ---------- Small Storage Unit Signal Interpreter > --- WEAPON ----------- Barrage Gun Makeshift Shrapnel Gun > --- INVENTORY -------- Makeshift Kinetic Plating Makeshift Thermal Plating Makeshift System Shield Subdweller Laser Battle Rifle Light Cannon Battle Cannon Piercing Trap [Rating: 16] Favorites ----------- Power Light Ion Engine Engine Light Ion Engine Propulsion Aluminum Leg Leg Aluminum Leg Wheel Subdweller Monowheel Utility Small Storage Unit Storage Small Storage Unit Processor Signal Interpreter Weapon Medium Laser Energy Gun Medium Laser Energy Cannon Subdweller Beam Cannon Ballistic Gun Barrage Gun Ballistic Cannon Light Cannon Special Weapon Enhanced Flamer Build | -11 -10 -10 -10 ------- Run | Yrd Mat Min Sub Slots Evolved . | . . . . Power . | . . . . Propulsion . | . . . . Utility . | . . . . Weapon . | . . . . Parts Attached 21 | 1 1 1 18 Power 2 | . . . 2 Engine 2 | . . . 2 Core . | . . . . Reactor . | . . . . Propulsion 5 | . . 1 4 Treads . | . . . . Leg 1 | . . 1 . Wheel 4 | . . . 4 Hover . | . . . . Flight . | . . . . Utility 1 | . 1 . . Device . | . . . . Storage . | . . . . Processor 1 | . 1 . . Hackware . | . . . . Protection . | . . . . Artifact . | . . . . Weapon 13 | 1 . . 12 Energy Gun 2 | 1 . . 1 Energy Cannon 1 | . . . 1 Ballistic Gun 5 | . . . 5 Ballistic Cannon 3 | . . . 3 Launcher . | . . . . Special Weapon 2 | . . . 2 Impact Weapon . | . . . . Slashing Weapon . | . . . . Piercing Weapon . | . . . . Special Melee Weapon . | . . . . Unidentified Prototypes . | . . . . Parts Lost 7 | . . . 7 Power 2 | . . . 2 Propulsion 2 | . . . 2 Utility . | . . . . Weapon 3 | . . . 3 Highest Loss Streak 4 | . . . 4 To Critical Strikes . | . . . . Average Slot Usage (%) 96 | . 97 100 95 Engine 12 | . 14 14 12 Leg 15 | . 28 28 9 Wheel 11 | . . . 16 Storage 14 | . 14 14 14 Processor 13 | . 11 14 14 Energy Gun 15 | . 28 28 9 Energy Cannon 3 | . . . 5 Ballistic Gun 2 | . . . 3 Ballistic Cannon 5 | . . . 8 Naked Turns . | . . . . Heaviest Build 22 | 12 12 12 22 Greatest Support 40 | 20 20 20 40 Greatest Overweight (x) 4 | . . . 4 Average Overweight (x) . | . . . . Largest Inventory Capacity 8 | 8 8 8 8 Average Capacity 8 | 8 8 8 8 Most Carried 8 | 6 8 8 8 Average Carried 7 | 6 6 7 7 Final Capacity 8 | 8 8 8 8 Final Carried 8 | 6 8 7 4 Class Distribution -------------------- 100% | Mutant Dominant Class ---------------- Mutant | -10/Materials Mutant | -10/Mines Mutant | -10/Subcaves Resources | -11 -10 -10 -10 ----------- Run | Yrd Mat Min Sub Matter Collected 638 | 210 10 10 408 Remotely . | . . . . Salvage Created 481 | . 77 150 254 Parts 28 | . 2 10 16 Haulers Intercepted . | . . . . Recyclers Shooed . | . . . . Parts Field Recycled . | . . . . Retrieved Matter . | . . . . Parts Self-Destructed 4 | . . . 4 Prevented . | . . . . Kills | -11 -10 -10 -10 ------- Run | Yrd Mat Min Sub Combat Hostiles Destroyed 13 | . 2 4 7 Guns 9 | . 2 4 3 Cannons 3 | . . . 3 Classes Destroyed 4 | . 1 1 2 Swarmer 1 | . . 1 . Grunt 5 | . 2 3 . Cobbler 1 | . . . 1 Subdweller 7 | . . . 7 Best Kill Streak 3 | . 2 3 2 Combat Bots Only 3 | . 2 3 2 Max Kills in Single Turn 1 | . 1 1 1 Gunslinging . | . . . . Exploded . | . . . . Melee . | . . . . Uniques/NPCs Destroyed . | . . . . Combat | -11 -10 -10 -10 -------- Run | Yrd Mat Min Sub Hostile Shots Fired 101 | . 10 25 66 Missed 27 | . 2 6 19 Damage Taken 1341 | . 115 235 991 Core 259 | . 32 45 182 Absorbed by Shields . | . . . . Core Remaining (%) 100 | 100 . . . Volleys Fired 78 | . 13 13 52 Largest 2 | . 2 2 2 Hottest 180 | . 100 100 180 Shots Fired 151 | . 26 26 99 Gun 91 | . 26 26 39 Cannon 55 | . . . 55 Launcher . | . . . . Special 5 | . . . 5 Kinetic 70 | . . . 70 Thermal 81 | . 26 26 29 Explosive . | . . . . Electromagnetic . | . . . . Robot Hit Streak 11 | . 6 6 11 Robot Miss Streak 4 | . 4 3 2 Penetration Max . | . . . . Secondary Targets 3 | . . 2 1 Max Gunslinging Chain 1 | . . 1 1 Shots Hit Robots 103 | . 14 16 73 Core Hits 32 | . 6 10 16 Critical Kills 1 | . . . 1 Critical Parts Destroyed . | . . . . Critical Strikes 7 | . 2 3 2 Burn 5 | . 2 3 . Meltdown 1 | . . . 1 Blast 1 | . . . 1 Melee Attacks . | . . . . Impact . | . . . . Slashing . | . . . . Piercing . | . . . . Sneak Attacks . | . . . . Combat Hostiles . | . . . . Follow-up Attacks . | . . . . Damage Inflicted 1489 | . 174 223 1092 Guns 897 | . 174 223 500 Cannons 545 | . . . 545 Explosions . | . . . . Melee . | . . . . Ramming . | . . . . Kinetic 682 | . . . 682 Thermal 807 | . 174 223 410 Explosive . | . . . . Electromagnetic . | . . . . Impact . | . . . . Slashing . | . . . . Piercing . | . . . . Highest Corruption . | . . . . Average Corruption . | . . . . Corruption Purged . | . . . . Corruption Blocked . | . . . . Overload Shots . | . . . . Overflow Damage . | . . . . Projectiles . | . . . . Explosions . | . . . . Melee . | . . . . Knockbacks 5 | . . . 5 Impact . | . . . . Kinetic 5 | . . . 5 Secondary . | . . . . Self-Inflicted Damage . | . . . . Shots . | . . . . Rammed . | . . . . Targets Rammed . | . . . . Kicked . | . . . . Crushed . | . . . . Highest Temperature 361 | . 361 330 54 Average Temperature 115 | . 148 130 17 Received Heat Transfer 324 | . 66 132 126 Siege Activations . | . . . . Robots Corrupted . | . . . . Combat Hostiles . | . . . . Parts Fried . | . . . . Impact Corruptions . | . . . . Robots Melted 1 | . . . 1 Combat Hostiles 1 | . . . 1 Parts Melted 4 | . 2 1 1 Heat Transferred 2346 | . 666 888 792 Parts Sabotaged . | . . . . Parts Stolen . | . . . . Parts Stripped . | . . . . Power Chain Reactions . | . . . . Missiles Intercepted . | . . . . Alert | -11 -10 -10 -10 ------- Run | Yrd Mat Min Sub Peak Influence 181 | . 56 181 . Initial 21 | . . 21 . Average 84 | . 39 127 . Maximum Alert Level . | . . . . Low Security (%) 100 | 100 100 100 . Level 1 . | . . . . Level 2 . | . . . . Level 3 . | . . . . Level 4 . | . . . . Level 5 . | . . . . High Security . | . . . . Max Security . | . . . . Squads Dispatched . | . . . . Investigation . | . . . . Extermination . | . . . . Reinforcement . | . . . . Assault . | . . . . Garrison . | . . . . Intercept . | . . . . Searches Triggered . | . . . . Construction Impeded . | . . . . Haulers Reinforced . | . . . . Active Scanning Responses . | . . . . Cargo Convoy Interrupts . | . . . . Stealth | -11 -10 -10 -10 --------- Run | Yrd Mat Min Sub Distress Signals . | . . . . Communications Jammed . | . . . . Distress Signals . | . . . . Times Spotted 24 | . 5 9 10 Peak Tracking Total 2 | . 2 2 2 Tactical Retreats 3 | . . 3 . Traps | -11 -10 -10 -10 ------- Run | Yrd Mat Min Sub Traps Triggered . | . . . . Indirectly . | . . . . Trap Hack Attempts . | . . . . Triggered . | . . . . Disarmed . | . . . . Reprogrammed . | . . . . Reused 2 | . . . 2 Traps Extracted . | . . . . Installed 2 | . . . 2 Triggered . | . . . . Most Traps Carried 2 | . . . 2 Machines | -11 -10 -10 -10 ---------- Run | Yrd Mat Min Sub Machines Disabled . | . . . . Max in Single Turn . | . . . . Machines Repaired . | . . . . Machines Dismantled . | . . . . Machines Sabotaged . | . . . . Overloaded Fab Kills . | . . . . Hacking | -11 -10 -10 -10 --------- Run | Yrd Mat Min Sub Machines Accessed 1 | . 1 . . Terminals 1 | . 1 . . Fabricators . | . . . . Repair Stations . | . . . . Recycling Units . | . . . . Scanalyzers . | . . . . Garrison Access . | . . . . Total Hacks 3 | . 3 . . Successful 2 | . 2 . . Failed 1 | . 1 . . Catastrophic . | . . . . Database Lockouts . | . . . . Manual 2 | . 2 . . Terminals 3 | . 3 . . Fabricators . | . . . . Repair Stations . | . . . . Recycling Units . | . . . . Scanalyzers . | . . . . Garrison Access . | . . . . Terminal Hacks 1 | . 1 . . Prototype ID Bank 1 | . 1 . . Fabricator Hacks . | . . . . Repair Station Hacks . | . . . . Recycling Unit Hacks . | . . . . Scanalyzer . | . . . . Garrison Access Hacks . | . . . . Unauthorized Hacks 1 | . 1 . . Terminals 1 | . 1 . . Botnet 1 | . 1 . . Fabricators . | . . . . Repair Stations . | . . . . Recycling Units . | . . . . Scanalyzers . | . . . . Garrison Access . | . . . . Data Cores Recovered . | . . . . Used . | . . . . Hacking Detections 1 | . 1 . . Full Trace Events 1 | . 1 . . Feedback Events . | . . . . Feedback Blocked . | . . . . Robot Schematics Acquired . | . . . . Robots Built . | . . . . Authchips . | . . . . Time . | . . . . Total Robot Build Rating . | . . . . Part Schematics Acquired . | . . . . Parts Built . | . . . . Authchips . | . . . . Time . | . . . . Total Part Build Rating . | . . . . Parts Repaired . | . . . . Time . | . . . . Parts Recycled . | . . . . Recycled Matter . | . . . . Retrieved Matter . | . . . . Retrieved Components . | . . . . Parts Scanalyzed . | . . . . Part Schematics Acquired . | . . . . Parts Damaged . | . . . . Bothacking | -11 -10 -10 -10 ------------ Run | Yrd Mat Min Sub Used RIF Installer . | . . . . Robots Hacked . | . . . . Non-combat . | . . . . Combat . | . . . . Robot Hacks Applied . | . . . . Relay Couplers Released . | . . . . Fabnet Peak Effective % . | . . . . Robots Rewired . | . . . . Allies Hacked . | . . . . Hacks Repelled . | . . . . Allies | -11 -10 -10 -10 -------- Run | Yrd Mat Min Sub Total Allies . | . . . . Largest Group . | . . . . Highest-Rated Group . | . . . . Highest-Rated Ally . | . . . . Total Orders . | . . . . Ally Attacks . | . . . . Total Damage . | . . . . Kills . | . . . . Allies Corrupted . | . . . . Allies Melted . | . . . . Intel | -11 -10 -10 -10 ------- Run | Yrd Mat Min Sub Robot Analysis Total . | . . . . Derelict Logs Recovered 2 | . . 1 1 Drone Launches . | . . . . Drone Recoveries . | . . . . Exploration | -11 -10 -10 -10 ------------- Run | Yrd Mat Min Sub Turns Passed 1504 | 6 235 255 1008 Spaces Moved 986 | 4 161 116 705 Core 16 | . . . 16 Treads . | . . . . Legs 513 | 4 161 116 232 Wheels 457 | . . . 457 Hover . | . . . . Flight . | . . . . Fastest Speed 95 | 120 120 120 95 Average Speed 114 | 120 120 120 112 Slowest Speed 250 | 120 120 120 250 Overloaded Moves . | . . . . Propulsion Burnouts . | . . . . Robots Hopped . | . . . . Cave-ins Triggered . | . . . . Exploration Rate (%) 25 | 2 30 25 45 Regions Visited 3 Branch Regions 2 Pre-discovered Areas . | . . . . Known Exits Taken 2 | . 1 1 . Unknown Exits Taken 1 | 1 . . . Scrap Searched 16 | . . 1 15 Spaces Dug . | . . . . Terrain Destroyed . | . . . . Melee . | . . . . Projectile . | . . . . AOE . | . . . . Terrain Rammed . | . . . . Walls Destroyed . | . . . . Machines Disabled . | . . . . Actions | -11 -10 -10 -10 --------- Run | Yrd Mat Min Sub Total 1210 | 4 176 207 823 Wait 91 | . . 74 17 Move 983 | 3 160 115 705 Hop . | . . . . Pick Up 16 | . 2 1 13 Fast Attach 7 | . 1 . 6 Attach 4 | . . . 4 Detach . | . . . . Swap 10 | 1 . 1 8 Drop 19 | . . 3 16 Fire 78 | . 13 13 52 Melee . | . . . . Ram . | . . . . Kick . | . . . . Crush . | . . . . Escape Stasis . | . . . . Rewire . | . . . . Trap 2 | . . . 2 Miscellaneous . | . . . . Route ------- -11/Scrapyard -10/Materials -10/Mines -10/Subcaves History --------- Turn | Location | Event 3 | -11/Scrapyard | Discovered new exit (range 2) 7 | -11/Scrapyard | Entered Materials 126 | -10/Materials | Discovered new exit (range 15) 240 | -10/Materials | Identified exit to Mines 242 | -10/Materials | Entered Mines 269 | -10/Mines | Learned Materials trap positions 330 | -10/Mines | Build established: Mutant 495 | -10/Mines | Discovered new exit (range 3) 496 | -10/Mines | Identified exit to Subcaves 497 | -10/Mines | Entered Subcaves 498 | -10/Subcaves | A swath of the cavern ceiling suddenly collapsed 584 | -10/Subcaves | Shifting Twisted Machinery released Mak. Kinetic Plating 606 | -10/Subcaves | Shifting Twisted Machinery released Battle Rifle 903 | -10/Subcaves | Lost 4 parts (1p2n1w) 955 | -10/Subcaves | Disturbed a concealed Subdweller 1119 | -10/Subcaves | A swath of the cavern ceiling suddenly collapsed 1208 | -10/Subcaves | Learned Materials emergency access door positions 1316 | -10/Subcaves | Core integrity fell below 50% 1396 | -10/Subcaves | Disturbed a concealed Subdweller 1398 | -10/Subcaves | Disturbed a concealed Subdweller 1406 | -10/Subcaves | Core integrity fell below 20% 1505 | -10/Subcaves | Destroyed by F3-0LN(R) with Subdweller Laser Last Messages --------------- 01413_ Acquired 19 matter. 01416_ Acquired 4 matter. 01417_ Searching scrap... 01417_ Found Enh. Flamer. 01417_ Found Shrapnel Trap. 01417_ Found 34 Matter. 01419_ Dropped Sub. Laser. 01419_ Sub. Laser crushed and broken. 01420_ Acquired Shrapnel Trap. 01422_ Dropped Battle Cannon. 01422_ Acquired Enh. Flamer. 01426_ Dropped Battle Rifle. 01426_ Acquired Flamer. 01459_ Mak. Shrapnel Gun destroyed. 01460_ Dropped Shrapnel Trap. 01460_ Installed Shrapnel Trap. 01474_ Dropped Piercing Trap. 01474_ Installed Piercing Trap. 01475_ Sub. Monowheel shoots sparks and powers down. 01492_ Flamer destroyed. Map ----- +----------------------------------------------------+ | ????????????## " "" #??####?????????????????????? | | ????????????## " ### ##????????????????????? | | ????????????# #????????????????????? | | ????????????# ## ### #????????????????? | | ????????????#### ##?????????????????????????? | | ??????????????# #% #?????????????????????????? | | ????????????# % # #####??????????????????????? | | ????????????## ## ## ##?????????????????????? | | ?????????????####### ##????????????????????? | | ?????????????????## #????????????????????? | | ?????????????????# #????????????????????? | | ?????????????????# ### ##???????????????????? | | ?????????????????## ### ##??????????????????? | | ??????????????????### ##?????????????????? | | ??????????????????## #?????????????????? | | ?????????????????## " ##?????????????????? | | ?????????????????# " ##??????????????????? | | ????????????????## " #???????????????????? | | ???????????##??## " #####???????????????????? | | ??????????## #?# " ##??##?"##???????????????? | | ??????????# ### "##?##"## #???????????????? | | ?????????## ### "####"""" #???????????????? | | ??????#### ## ""# ##??????????????? | | ????? O"""" "#??????????????? | | ???????????## " R ""#???????????????????? | | ????????????#### !""##@ ##???????????????????? | | ???????????????###" "#### ##????"??????????????? | | ????????????????#" "#??## #???"???????????????? | | ????????????????#"" #???# #??"##??????????????? | | ????????????????## "##?##^####""#??????????????? | | ?????????????????## ### # # " #??????????????? | | ??????????????????## [##% #??????????????? | | ???????????????????# &]!& # #####??????????????? | | ???????????????????# =#[%!! #??????????????????? | | ???????????????????#&&] #### #??????????????????? | | ???????????????????###&#&""## #??????????????????? | | ?????????????????????#&#*%]%# #??????????????????? | | ?????????????????????# #%= "# #??????????????????? | | ?????????????????????# ##"&"# #??????????????????? | | ?????????????????????# ##"## #??????????????????? | | ?????????????????????# ### #??????????????????? | | ?????????????????????### #??????????????????? | | ???????????????????????########??????????????????? | | ?????????????????????????????????????????????????? | | ?????????????????????????????????????????????????? | | ?????????????????????????????????????????????????? | | ?????????????????????????????????????????????????? | | ?????????????????????????????????????????????????? | | ?????????????????????????????????????????????????? | | ?????????????????????????????????????????????????? | +----------------------------------------------------+ Best States ------------- Heat Dissipation 25 Energy Generation 15 Energy Capacity 200 Matter Stores 300 Matter Capacity 300 Sight Range 16 Terrain Scan Density 10 Evasion (%) 55 Item Schematics ----------------- None Robot Schematics ------------------ None Fabricated ------------ Nothing Alien Tech Used ----------------- None Achievements -------------- None Challenges ------------ None Game ------ Seed CloakingStealthBuckler Manual? 0 Play Time 00:12:04 Cumulative 564.1 hours Start 2024.01.03 @ 17:05:35 End 2024.01.03 @ 17:15:19 Sessions 1 Manual Loads 0 Difficulty Rogue Special Mode None Game No. 447 Rogue 175 Adventurer 122 Explorer 150 Win Type - Total 25 Types 19/0/4/1/0/0/0/1/0 Lore% 77 Gallery% 90 Achievement% 75 Wizard Run 0 Options --------- ASCII 0 Keyboard 1 Movement Numpad Keybinds 0 Fullscreen 2 Font 18/X11Bold Map View 76x50 Zoom Use 0% Tactical HUD 1 Map Filters NONE Filters NONE Steam 1 RUN: dc52b791-30fb-48f1-8f95-9d29259b533a